Cogmind - Beta 15 @@@ ROGUE MODE // 2025.06.28 @ 14:06:01 Player: Demo Result: Destroyed by Tracker with Linked Autogun Performance ------------- Evolutions (6) 3000 Regions Visited (18) 3600 Robots Destroyed (324) 1620 Value Destroyed (14920) 14920 Prototype IDs (216) 4320 Alien Tech Used (0) 0 Bonus (15512) 15512 TOTAL SCORE: 42972 Bonus ------- Pacifist 200 Triggered High Security 500 High Alert Combat Kills 7075 Follower Combat Kills 2900 Met Data Miner 300 Used Data Conduit 3000 Built Enhanced Grunts 300 A7 Reached Mainframe 300 Met R17 at Cetus 500 Pursued by Intercept 500 Friendly Fire -63 Cogmind --------- Core Integrity 0/1150 Matter 201/300 Energy 55/100 System Corruption 12% Temperature Cool (0) Movement Core (50) Location -4/Armory Parts ------- > --- POWER (1) -------- (None) > --- PROPULSION (4) --- Medium Treads Centrium Wheel > --- UTILITY (10) ----- Advanced Heat Sink Terrain Scan Processor Advanced Salvage Targeting Computer Experimental Target Analyzer Core Analyzer > --- WEAPON (4) ------- (None) > --- INVENTORY (5) ---- Advanced Energy Well (500) Terrain Scanner Terrain Scan Processor Improved Plasma Cutter Peak State ------------ > --- POWER ------------ Light Quantum Reactor > --- PROPULSION ------- Advanced Heavy Siege Treads Advanced Heavy Siege Treads > --- UTILITY ---------- Advanced Power Amplifier Advanced Heat Sink High-capacity Storage Unit Advanced Energy Well Terrain Scan Processor Experimental Target Analyzer Core Analyzer Improved Medium Armor Plating Centrium Medium Armor Plating Centrium Medium Armor Plating > --- WEAPON ----------- Hypervelocity Railgun Hypervelocity Railgun Hypervelocity Railgun Hypervelocity Railgun > --- INVENTORY -------- Light Quantum Reactor Advanced Medium Treads Centrium Wheel Advanced Heat Sink Advanced Heat Sink Matter Compressor Terrain Scan Processor Terrain Scan Processor Advanced Salvage Targeting Computer Core Analyzer Improved Transmission Jammer Experimental Thermal Shield Enhanced Nova Cannon Hypervelocity Railgun Hypervelocity Railgun Hypervelocity Railgun Heavy Rocket Launcher Tiamat Missile Launcher Improved Plasma Cutter [Rating: 146] Favorites ----------- Power Mini Fusion Reactor Engine Improved Deuterium Engine Power Core Micro Nuclear Core Reactor Mini Fusion Reactor Propulsion Improved Treads Treads Improved Treads Wheel Wheel Utility Core Analyzer Device Improved Cooling System Storage High-capacity Storage Unit Processor Core Analyzer Protection Layered Medium Armor Plating Weapon Enhanced Autogun Energy Gun Heavy Dispersion Rifle Energy Cannon Enhanced Nova Cannon Ballistic Gun Enhanced Autogun Ballistic Cannon Light Cannon Launcher Tiamat Missile Launcher Special Weapon Improved Plasma Cutter Build | -11 -10 -9 -9 -8 -7 -7 -7 -7 -6 -6 -6 -6 -5 -5 -5 -5 -4 -4 ------- Run | Yrd Mat Mat Sto Mat Fac Low Low Dat Pro Fac Was Fac Fac Ext Cet Arc Fac Arm Slots Evolved 12 | . . 2 . 2 2 . . . . 2 . . 2 . . . 2 . Power . | . . . . . . . . . . . . . . . . . . . Propulsion 2 | . . . . 1 . . . . . . . . 1 . . . . . Utility 8 | . . 1 . . 2 . . . . 2 . . 1 . . . 2 . Weapon 2 | . . 1 . 1 . . . . . . . . . . . . . . Parts Attached 186 | 2 . 7 22 26 19 2 2 5 14 2 8 3 1 4 6 2 14 47 Power 19 | . . . 4 3 3 . . . 2 . . . . . 1 . 1 5 Engine 7 | . . . 4 1 2 . . . . . . . . . . . . . Core 4 | . . . . 2 1 . . . 1 . . . . . . . . . Reactor 8 | . . . . . . . . . 1 . . . . . 1 . 1 5 Propulsion 40 | 2 . 1 5 5 6 . 1 . . 2 1 2 1 . 1 2 3 8 Treads 25 | 2 . 1 3 3 2 . . . . . 1 1 . . . 2 2 8 Leg . | . . . . . . . . . . . . . . . . . . . Wheel 15 | . . . 2 2 4 . 1 . . 2 . 1 1 . 1 . 1 . Hover . | . . . . . . . . . . . . . . . . . . . Flight . | . . . . . . . . . . . . . . . . . . . Utility 77 | . . 3 5 11 9 2 1 2 4 . 4 1 . 3 4 . 7 21 Device 31 | . . . 2 4 2 2 1 . 1 . 1 . . . 3 . 4 11 Storage 3 | . . . 1 . 1 . . . . . . . . . . . 1 . Processor 17 | . . 3 . 2 4 . . 1 1 . 2 . . . . . . 4 Hackware . | . . . . . . . . . . . . . . . . . . . Protection 26 | . . . 2 5 2 . . 1 2 . 1 1 . 3 1 . 2 6 Artifact . | . . . . . . . . . . . . . . . . . . . Weapon 50 | . . 3 8 7 1 . . 3 8 . 3 . . 1 . . 3 13 Energy Gun 16 | . . 2 2 1 . . . . 5 . . . . 1 . . 3 2 Energy Cannon 3 | . . . 1 . . . . . 1 . . . . . . . . 1 Ballistic Gun 21 | . . . 4 5 1 . . . 2 . . . . . . . . 9 Ballistic Cannon 1 | . . . 1 . . . . . . . . . . . . . . . Launcher 7 | . . 1 . 1 . . . 2 . . 2 . . . . . . 1 Special Weapon 2 | . . . . . . . . 1 . . 1 . . . . . . . Impact Weapon . | . . . . . . . . . . . . . . . . . . . Slashing Weapon . | . . . . . . . . . . . . . . . . . . . Piercing Weapon . | . . . . . . . . . . . . . . . . . . . Special Melee Weapon . | . . . . . . . . . . . . . . . . . . . Unidentified Prototypes 6 | . . . 3 2 . . . . 1 . . . . . . . . . Parts Lost 58 | . . 2 4 2 1 . . 5 5 . . . . . 1 . 2 36 Power 7 | . . . 2 . . . . 1 . . . . . . . . . 4 Propulsion 11 | . . 2 . 1 . . . 1 1 . . . . . 1 . . 5 Utility 18 | . . . 2 . . . . 1 1 . . . . . . . . 14 Weapon 22 | . . . . 1 1 . . 2 3 . . . . . . . 2 13 Highest Loss Streak 17 | . . 2 2 1 1 . . 5 3 . . . . . 1 . 1 17 To Critical Strikes 2 | . . . . . . . . . . . . . . . 1 . . 1 Average Backups 16 | . . 1 13 14 17 19 19 18 16 19 13 18 18 18 19 19 19 19 Power . | . . . . . . . . . 1 3 2 2 2 2 2 2 1 . Propulsion 2 | . . . 1 2 2 5 5 4 2 1 1 1 2 1 . . 1 1 Utility 8 | . . . 4 5 9 10 10 10 9 10 6 9 9 10 11 11 10 10 Weapon 4 | . . . 6 5 3 3 3 2 2 3 2 3 4 4 4 4 4 5 Tool/Special . | . . . . . . . . . . . . . . . . . . . Unused Backups 74 | . . . 10 13 8 1 1 . 7 1 1 4 2 4 2 1 8 11 Power 6 | . . . . . . . . . 1 . . 1 . . . 1 1 2 Propulsion 17 | . . . 2 5 4 . . . . . . 1 2 . . . 2 1 Utility 41 | . . . 5 6 4 . 1 . 6 1 1 2 . 4 2 . 4 5 Weapon 9 | . . . 3 2 . 1 . . . . . . . . . . . 3 Tool/Special 1 | . . . . . . . . . . . . . . . . . 1 . Average Slot Usage (%) 91 | . 28 27 96 98 95 100 95 83 83 96 94 92 87 88 88 90 93 88 Engine 3 | . . . 10 7 5 7 7 3 . . . . . . . . . . Reactor 2 | . . . . . . . . . 3 6 6 6 5 5 5 5 5 4 Treads 10 | . 28 16 12 21 15 7 7 5 7 6 8 7 . . . 5 5 10 Wheel 7 | . . . 8 5 6 15 10 7 7 9 8 4 10 11 11 7 9 2 Device 9 | . . . 3 6 3 7 7 3 . 12 13 13 11 9 16 17 20 16 Storage 7 | . . . 10 9 7 7 7 7 5 6 4 6 5 5 5 5 10 9 Processor 14 | . . 6 10 . 12 15 15 19 23 20 19 20 17 17 17 17 15 17 Protection 7 | . . . 7 10 8 6 6 7 6 6 5 6 10 12 5 5 5 6 Energy Gun 10 | . . 3 14 14 . . . . 15 22 14 20 17 14 16 17 15 9 Ballistic Gun 14 | . . . 13 21 29 29 29 23 8 4 1 6 5 3 4 5 3 7 Launcher 1 | . . 1 . . . . . 4 . . 9 . . 3 . . . . Peak Build Rating 146 | 2 2 9 26 39 50 48 53 53 80 88 106 104 106 107 114 114 135 146 Average Rating 72 | 1 2 3 20 30 46 47 50 48 61 81 92 100 105 105 105 113 130 125 On Entrance 63 | . 2 2 9 20 39 47 47 53 50 80 79 104 99 106 105 114 114 133 Naked Turns . | . . . . . . . . . . . . . . . . . . . Heaviest Build 111 | . . 3 46 57 75 77 73 78 87 86 96 86 96 106 95 95 106 111 Greatest Support 160 | 3 3 3 40 69 66 20 28 28 28 28 98 98 56 56 56 56 44 160 Greatest Overweight (x) 7 | . . . 4 4 7 3 3 2 3 4 4 3 3 1 1 3 3 6 Average Overweight (x) 1 | . . . 3 . 1 3 2 2 1 3 1 2 1 1 1 2 2 . Largest Inventory Capacity 20 | 5 5 5 15 15 20 20 20 20 20 20 20 20 20 20 20 20 20 20 Average Capacity 17 | 5 5 5 14 15 17 20 20 20 17 20 15 20 20 20 20 20 20 19 Most Carried 20 | . . 5 15 15 20 20 20 20 20 20 20 20 20 20 20 20 20 20 Average Carried 17 | . . 1 13 14 17 19 20 19 16 19 14 19 19 19 19 19 19 19 Final Capacity 20 | 5 5 5 15 15 20 20 20 20 20 20 20 20 20 20 20 20 20 5 Final Carried 20 | . . 5 15 15 20 20 20 20 20 19 20 20 20 20 20 20 20 4 Class Distribution -------------------- 42% | Gunner 23% | Scavenger-Gunner 17% | Tank 8% | Scavenger-Tank 4% | Mutant Dominant Class ---------------- Mutant | -10/Materials Mutant | -9/Materials Tank | -9/Storage Tank | -8/Materials Gunner | -7/Factory Scavenger-Gunner | -7/Lower Caves Gunner | -7/Lower Caves Gunner | -7/Data Miner Gunner | -6/Proximity Caves Scavenger-Gunner | -6/Factory Gunner | -6/Waste Gunner | -6/Factory Gunner | -5/Factory Gunner | -5/Extension Gunner | -5/Cetus Scavenger-Gunner | -5/Archives Scavenger-Gunner | -4/Factory Scavenger-Tank | -4/Armory Resources | -11 -10 -9 -9 -8 -7 -7 -7 -7 -6 -6 -6 -6 -5 -5 -5 -5 -4 -4 ----------- Run | Yrd Mat Mat Sto Mat Fac Low Low Dat Pro Fac Was Fac Fac Ext Cet Arc Fac Arm Matter Collected 12248 | 143 . 87 1014 935 1789 200 542 213 260 42 808 507 105 1287 447 40 974 2855 Remotely . | . . . . . . . . . . . . . . . . . . . Salvage Created 16676 | . . 148 1910 1470 2108 135 528 439 34 42 1281 437 305 1846 386 90 1455 4062 Parts 766 | . . 8 89 69 140 6 19 21 4 2 7 15 14 76 11 6 85 194 Haulers Intercepted 15 | . . . 4 3 4 . . . . . . 2 . 1 . . 1 . Recyclers Shooed 6 | . . . . 3 1 . . . . . . . . . . . 2 . Parts Field Recycled . | . . . . . . . . . . . . . . . . . . . Retrieved Matter . | . . . . . . . . . . . . . . . . . . . Parts Self-Destructed 72 | . . . . . . 2 10 . 60 . . . . . . . . . Prevented 7 | . . . . . . 3 4 . . . . . . . . . . . Kills | -11 -10 -9 -9 -8 -7 -7 -7 -7 -6 -6 -6 -6 -5 -5 -5 -5 -4 -4 ------- Run | Yrd Mat Mat Sto Mat Fac Low Low Dat Pro Fac Was Fac Fac Ext Cet Arc Fac Arm Combat Hostiles Destroyed 240 | . . 5 31 15 29 3 7 4 . . 6 5 4 44 5 1 18 63 Guns 166 | . . 1 27 14 27 1 4 . . . 3 5 4 17 5 1 12 45 Cannons 6 | . . . 1 . . . . . . . . . . . . . . 5 AOE 63 | . . 4 3 1 2 2 3 1 . . 3 . . 27 . . 6 11 Classes Destroyed 24 | . . 2 8 3 4 . 1 . . . 1 1 . 2 . . . 2 Worker 20 | . . . 2 4 6 . . . . 1 . . 1 1 . . 5 . Builder 18 | . . . 2 1 2 . . . . . . . . 7 . . 6 . Tunneler 2 | . . . . . 1 . . . . . . . . 1 . . . . Hauler 15 | . . . 4 3 4 . . . . . . 2 . 1 . . 1 . Recycler 14 | . . . 5 5 2 . . . . . . . . 1 . . 1 . Minesweeper 2 | . . . . . . . 1 . 1 . . . . . . . . . Mechanic 1 | . . . . . . . . . . . . . . . . . . 1 Operator 4 | . . . . 1 2 . . . . . . . . . . . 1 . Drone 1 | . . . . 1 . . . . . . . . . . . . . . Watcher 8 | . . . . 1 1 . . . . 1 . . 1 . 1 . 2 1 Swarmer 18 | . . . 8 . 4 3 1 . . . . . . . . . 2 . Saboteur 1 | . . . . . . . . . . . . . . 1 . . . . Grunt 93 | . . 3 11 12 10 . 3 . . . . 4 2 18 . . 7 23 Brawler 13 | . . . 2 . 1 . . . . . . . . 8 . . . 2 Duelist 17 | . . . 2 . 2 . 2 . . . . . . 4 . . . 7 Protector 4 | . . . 2 . . . . . . . . . . 1 . . . 1 Sentry 35 | . . 2 6 3 4 . 1 . . . . . . 7 . 1 4 7 Demolisher 1 | . . . . . . . . . . . . . . . . . . 1 Specialist 5 | . . . . . 2 . . . . . . . . . . . 2 1 Hunter 14 | . . . . . 1 . . . . . . . 2 3 . . 2 6 Programmer 16 | . . . . . 5 . . . . . . . . . . . . 11 Heavy 4 | . . . . . . . . . . . . 1 . . . . 1 2 Behemoth 3 | . . . . . . . . . . . . . . 2 . . . 1 Compactor 6 | . . . . . . . . . . . 6 . . . . . . . Cetus Guard 5 | . . . . . . . . . . . . . . . 5 . . . Enhanced Grunt 4 | . . . . . . . . 4 . . . . . . . . . . Tracker 1 | . . . . . . . . . . . . . . . . . . 1 Packrat 1 | . . . . . . . 1 . . . . . . . . . . . Best Kill Streak 19 | . . 4 6 5 7 3 5 4 1 1 2 3 3 19 4 1 8 7 Combat Bots Only 14 | . . 4 6 3 5 3 5 4 . . 2 3 2 14 3 1 8 7 Max Kills in Single Turn 6 | . . 3 2 2 2 1 3 1 1 1 1 1 1 6 3 1 4 3 Gunslinging 2 | . . . 1 1 . . . . . . . . . . 1 . . 2 Exploded 6 | . . 3 2 1 2 1 3 1 . . 1 . . 6 . . 4 1 Melee . | . . . . . . . . . . . . . . . . . . . Uniques/NPCs Destroyed . | . . . . . . . . . . . . . . . . . . . Combat | -11 -10 -9 -9 -8 -7 -7 -7 -7 -6 -6 -6 -6 -5 -5 -5 -5 -4 -4 -------- Run | Yrd Mat Mat Sto Mat Fac Low Low Dat Pro Fac Was Fac Fac Ext Cet Arc Fac Arm Hostile Shots Fired 1256 | . 4 49 92 56 117 7 40 30 64 . . 15 9 98 25 1 83 566 Missed 406 | . 1 20 35 25 51 6 13 13 23 . . 6 4 33 10 . 31 135 Hits 850 | . 3 29 57 31 66 1 27 17 41 . . 9 5 65 15 1 52 431 Melee 39 | . . . 5 . 1 . . . . . . . . . . . . 33 Projectile 811 | . 3 29 52 31 65 1 27 17 41 . . 9 5 65 15 1 52 398 Critical Strikes 48 | . . 2 . 2 2 . . . . . . 1 1 5 2 . 2 31 Part Disruptions 1 | . . . . . . . . . 1 . . . . . . . . . Damage Taken 16999 | . 33 402 962 550 889 13 369 779 684 . . 184 100 1094 261 46 1286 9347 Core 1779 | . . 28 158 49 53 . 18 89 69 . . 20 . 84 43 . 100 1068 Absorbed by Shields 276 | . . . . . . . . . . . . . . 194 59 23 . . Reduced by Siege Mode 160 | . . . . . . . . . . . . . . . . . . 160 Redirected to Shielding 45 | . . . . . . . . . 45 . . . . . . . . . Ignored by Resistances 666 | . . . . 3 . . . . 4 . . . 12 185 77 . 13 372 Regen/Repaired (Parts) 378 | . . . . . . . . . . . 273 . 14 91 . . . . Core Remaining (%) 85 | 100 100 . 53 91 . . . . 67 . . 97 . . . 87 . . Volleys Fired 639 | . . 15 118 66 91 7 20 20 12 4 21 16 13 43 10 4 42 137 Largest 4 | . . 1 3 4 4 4 4 3 3 4 4 4 4 4 4 4 4 4 Hottest 348 | . . 45 124 180 103 103 111 108 78 247 280 247 247 247 301 301 301 348 Shots Fired 1879 | . . 15 269 234 349 12 80 23 17 12 59 58 39 120 38 12 137 405 Gun 1707 | . . 7 238 234 347 7 76 14 16 12 34 58 39 89 38 12 128 358 Cannon 49 | . . . 25 . . . . . . . . . . . . . . 24 Launcher 122 | . . 8 6 . 2 5 4 8 1 . 25 . . 31 . . 9 23 Special 1 | . . . . . . . . 1 . . . . . . . . . . Kinetic 1069 | . . . 150 161 347 7 76 14 10 4 . 16 10 19 10 4 22 219 Thermal 608 | . . . 81 32 . . . 1 6 8 34 42 29 70 28 8 106 163 Explosive 102 | . . 8 6 . . . . . . . 25 . . 31 . . 9 23 Electromagnetic 100 | . . 7 32 41 2 5 4 8 1 . . . . . . . . . Robot Hit Streak 28 | . . 7 15 10 9 9 9 8 7 4 20 7 13 11 18 3 15 28 Robot Miss Streak 8 | . . 3 5 5 7 . 5 2 2 1 2 4 1 3 1 1 3 8 Penetration Max 2 | . . . . . . . . . . 1 . 1 1 2 2 . 1 1 Secondary Targets 40 | . . . 3 5 3 . 1 . . . . 2 1 3 3 . 2 17 Max Gunslinging Chain 2 | . . . 1 1 1 . 1 . . . . 1 1 1 1 . 1 2 Shots Hit Robots 1090 | . . 9 154 142 169 4 43 17 10 6 46 33 21 78 34 7 70 247 Core Hits 728 | . . 9 80 58 88 5 19 18 2 2 12 14 11 162 17 3 57 171 Critical Kills 71 | . . . . . 2 . . . . . 2 2 5 7 6 1 13 33 Critical Parts Destroyed 75 | . . . 1 1 . . . . . 2 1 3 8 16 8 1 6 28 Critical Strikes 177 | . . . 5 2 2 . . . . 2 10 5 14 25 17 3 26 66 Burn 16 | . . . 3 1 . . . . . . . . 1 2 . . 6 3 Destroy 160 | . . . 1 1 2 . . . . 2 10 5 13 23 17 3 20 63 Blast 1 | . . . 1 . . . . . . . . . . . . . . . Melee Attacks . | . . . . . . . . . . . . . . . . . . . Impact . | . . . . . . . . . . . . . . . . . . . Slashing . | . . . . . . . . . . . . . . . . . . . Piercing . | . . . . . . . . . . . . . . . . . . . Sneak Attacks . | . . . . . . . . . . . . . . . . . . . Combat Hostiles . | . . . . . . . . . . . . . . . . . . . Follow-up Attacks . | . . . . . . . . . . . . . . . . . . . Damage Inflicted 39904 | . . 419 2543 2430 3320 226 820 572 279 136 3943 900 593 10081 860 192 3644 8946 Guns 20283 | . . 75 2277 2377 2980 67 583 134 200 136 957 900 593 1631 860 192 2197 4124 Cannons 737 | . . . 72 . . . . . . . . . . . . . . 665 Explosions 18861 | . . 344 194 48 340 159 237 427 79 . 2986 . . 8450 . . 1447 4150 Melee . | . . . . . . . . . . . . . . . . . . . Ramming 12 | . . . . 5 . . . . . . . . . . . . . 7 Kinetic 8511 | . . . 1181 1617 2980 67 583 134 86 19 . 73 48 103 86 12 68 1454 Thermal 12430 | . . . 885 324 340 . 100 39 114 117 957 827 545 1528 774 180 2365 3335 Explosive 17315 | . . 344 174 . . . . . . . 2986 . . 8450 . . 1211 4150 Electromagnetic 1636 | . . 75 303 484 . 159 137 399 79 . . . . . . . . . Impact . | . . . . . . . . . . . . . . . . . . . Slashing . | . . . . . . . . . . . . . . . . . . . Piercing . | . . . . . . . . . . . . . . . . . . . Highest Corruption 12 | . . . 9 . 1 1 . . 2 . . . . . . . . 12 Average Corruption 4 | . . . 6 . 1 1 . . 1 . . . . . . . . 8 Corruption Purged 1 | . . . . . . 1 . . . . . . . . . . . . Corruption Blocked . | . . . . . . . . . . . . . . . . . . . Effects 109 | . . . 32 . 7 6 . . 8 . . . . . . . . 56 Message Errors 26 | . . . 7 . 1 1 . . 3 . . . . . . . . 14 Matter Fused 19 | . . . 2 . . 2 . . . . . . . . . . . 15 Heat Flow Errors 8 | . . . 3 . . 1 . . . . . . . . . . . 4 Energy Discharges 16 | . . . 4 . 3 1 . . 2 . . . . . . . . 6 Parts Rejected 1 | . . . . . . . . . . . . . . . . . . 1 Parts Fused 1 | . . . . . . . . . 1 . . . . . . . . . Data Loss (minor) 18 | . . . 7 . 2 1 . . 2 . . . . . . . . 6 Data Loss (major) 4 | . . . 2 . . . . . . . . . . . . . . 2 Misfires 6 | . . . 4 . 1 . . . . . . . . . . . . 1 Alerts 1 | . . . 1 . . . . . . . . . . . . . . . Weapon Failures 9 | . . . 2 . . . . . . . . . . . . . . 7 Overload Shots 17 | . . . . . . . . . . . . . . . . . 8 9 Effects 1 | . . . . . . . . . . . . . . . . . . 1 Energy Bleed 1 | . . . . . . . . . . . . . . . . . . 1 Overflow Damage 291 | . . 26 . . 23 . . . . . . . . 80 . . 76 86 Projectiles 18 | . . . . . . . . . . . . . . . . . . 18 Explosions 273 | . . 26 . . 23 . . . . . . . . 80 . . 76 68 Melee . | . . . . . . . . . . . . . . . . . . . Knockbacks . | . . . . . . . . . . . . . . . . . . . Impact . | . . . . . . . . . . . . . . . . . . . Kinetic . | . . . . . . . . . . . . . . . . . . . Secondary . | . . . . . . . . . . . . . . . . . . . Self-Inflicted Damage 212 | . . . . 48 56 . 19 . . . . . . . . . 82 7 Shots 5 | . . . . 1 1 . 1 . . . . . . . . . 1 1 Rammed 2 | . . . . 1 . . . . . . . . . . . . . 1 Targets Rammed 2 | . . . . 1 . . . . . . . . . . . . . 1 Kicked . | . . . . . . . . . . . . . . . . . . . Crushed . | . . . . . . . . . . . . . . . . . . . Highest Temperature 472 | . . 3 463 318 472 119 63 42 20 27 120 90 75 206 102 . 36 348 Average Temperature 74 | . . 3 93 101 89 33 15 21 4 18 46 26 26 52 44 . 21 55 Received Heat Transfer 2988 | . 18 174 186 288 249 . 141 . 18 . . 54 27 215 9 . 228 1381 Effects 13 | . . . 5 4 1 . . . . . . . . . . . . 3 Energy Bleed 2 | . . . 1 1 . . . . . . . . . . . . . . Interference 9 | . . . 3 3 . . . . . . . . . . . . . 3 Matter Decay 1 | . . . 1 . . . . . . . . . . . . . . . Short Circuit 1 | . . . . . 1 . . . . . . . . . . . . . Siege Activations 7 | . . . . . . . . . . . . . . . . . . 7 Total Turns 109 | . . . . . . . . . . . . . . . . . . 109 Longest Duration 34 | . . . . . . . . . . . . . . . . . . 34 Martial Activations . | . . . . . . . . . . . . . . . . . . . Shielding Activations . | . . . . . . . . . . . . . . . . . . . Robots Disrupted . | . . . . . . . . . . . . . . . . . . . Combat Hostiles . | . . . . . . . . . . . . . . . . . . . Robots Corrupted 3 | . . . . . . . . 3 . . . . . . . . . . Combat Hostiles 3 | . . . . . . . . 3 . . . . . . . . . . Parts Fried 8 | . . . . . . . . 8 . . . . . . . . . . Impact Corruptions . | . . . . . . . . . . . . . . . . . . . Robots Melted 2 | . . . . . . . . . . . . . . . . . . 2 Combat Hostiles 2 | . . . . . . . . . . . . . . . . . . 2 Parts Melted 31 | . . . 3 1 . . . . . . . 3 1 4 1 . 6 12 Heat Transferred 15896 | . . . 1952 716 250 . 100 87 148 148 1073 962 703 1961 925 222 2846 3803 Parts Sabotaged . | . . . . . . . . . . . . . . . . . . . Parts Stolen . | . . . . . . . . . . . . . . . . . . . Parts Stripped . | . . . . . . . . . . . . . . . . . . . Power Chain Reactions 6 | . . . 1 1 . . 1 3 . . . . . . . . . . Alert | -11 -10 -9 -9 -8 -7 -7 -7 -7 -6 -6 -6 -6 -5 -5 -5 -5 -4 -4 ------- Run | Yrd Mat Mat Sto Mat Fac Low Low Dat Pro Fac Was Fac Fac Ext Cet Arc Fac Arm Maximum Alert Level 5 | . . . 2 1 3 . . . . . . 3 4 5 5 3 4 5 Low Security (%) 31 | 100 100 100 28 82 25 . . . . 100 100 41 . . . . . . Level 1 15 | . . . 63 17 24 . . . . . . 3 . . . . 12 . Level 2 15 | . . . 8 . 42 . . . . . . 11 25 5 . . 27 16 Level 3 15 | . . . . . 7 . . . . . . 43 30 30 . 100 21 31 Level 4 12 | . . . . . . . . . . . . . 43 32 . . 38 31 Level 5 7 | . . . . . . . . . . . . . . . 100 . . 20 High Security 2 | . . . . . . . . . . . . . . 31 . . . . Max Security . | . . . . . . . . . . . . . . . . . . . Peak Influence 3602 | . . 154 479 258 734 . . . . 9 44 1099 1354 3602 2161 986 1468 1901 Initial 2016 | . . . 60 161 113 . . . . . 2 . 528 633 2016 836 313 715 Average 673 | . . 84 249 104 401 . . . . 2 3 514 981 1617 2081 935 919 1172 Influence Increases 13280 | . . 224 1039 527 1259 85 145 . 5 15 93 1199 956 3489 315 160 1545 2224 Destroy 0b10 Robot/C 5980 | . . 100 580 300 580 60 140 . . . . 340 300 1580 160 80 480 1280 Destroy 0b10 Robot/NC 510 | . . . 75 75 90 . 5 . 5 10 . 25 10 100 10 . 90 15 Destroy Leader 1110 | . . 30 128 88 170 10 . . . 2 . 96 42 172 . . 100 272 Allied During Kill 2664 | . . . 5 . . . . . . . . 461 305 1256 100 80 394 63 Successful Hack 97 | . . . 9 11 69 . . . . . . . 8 . . . . . Disable Machine 690 | . . . 45 45 75 . . . . . . 60 . 45 15 . 225 180 Anti-Garrison Action 550 | . . . . . 200 . . . . . . 150 200 . . . . . Destroy Structure 1259 | . . 34 47 8 45 . . . . 3 93 67 76 336 30 . 196 324 Partial Spotted 15 | . . 15 . . . . . . . . . . . . . . . . Lose Combat Pursuer 405 | . . 45 150 . 30 15 . . . . . . 15 . . . 60 90 Influence Decreases 11422 | . . 80 800 660 775 595 330 39 5 9 99 120 741 1181 1826 1355 981 1826 Entered New Map 6184 | . . . 84 222 137 273 44 39 . . 4 . 551 661 1586 1255 583 745 Time Decay 4068 | . . 60 486 398 628 302 286 . 5 9 95 100 180 310 190 100 318 601 Lost Part 480 | . . 20 40 20 10 . . . . . . . . . 10 . 20 360 Lost Ally 540 | . . . 40 20 . 20 . . . . . 20 10 210 40 . 60 120 Purge Threat 150 | . . . 150 . . . . . . . . . . . . . . . Squads Dispatched 68 | . 1 2 3 4 12 . . . . 1 . 7 2 15 . . 5 16 Investigation 6 | . . . . 1 1 . . . . . . . 2 1 . . . 1 Extermination 10 | . . . . . 4 . . . . . . 1 . . . . 1 4 Reinforcement 22 | . 1 2 1 3 3 . . . . 1 . 3 . 2 . . 3 3 Assault 24 | . . . 2 . 2 . . . . . . 2 . 12 . . 1 5 Garrison 3 | . . . . . 2 . . . . . . 1 . . . . . . Intercept 3 | . . . . . . . . . . . . . . . . . . 3 Searches Triggered . | . . . . . . . . . . . . . . . . . . . Construction Impeded 5 | . . . . . . . . . . 1 . 1 . 2 . . 1 . Haulers Reinforced 1 | . . . . . . . . . . . . 1 . . . . . . Active Scanning Responses . | . . . . . . . . . . . . . . . . . . . Cargo Convoy Interrupts . | . . . . . . . . . . . . . . . . . . . Stealth | -11 -10 -9 -9 -8 -7 -7 -7 -7 -6 -6 -6 -6 -5 -5 -5 -5 -4 -4 --------- Run | Yrd Mat Mat Sto Mat Fac Low Low Dat Pro Fac Was Fac Fac Ext Cet Arc Fac Arm Distress Signals 21 | . . 1 2 4 1 . . . . . . 3 1 3 2 . 1 3 Communications Jammed 19 | . . . . . . . . . . . . . . . . . 1 18 Distress Signals 12 | . . . . . . . . . . . . . . . . . 1 11 Times Spotted 396 | . 4 8 48 24 39 4 7 4 9 1 6 15 7 79 9 5 35 92 Peak Tracking Total 15 | . 3 6 9 4 5 3 5 4 6 1 3 8 4 15 5 2 8 10 Tactical Retreats 20 | . . 1 7 . 2 1 . . . . . . 1 . . . 3 5 Traps | -11 -10 -9 -9 -8 -7 -7 -7 -7 -6 -6 -6 -6 -5 -5 -5 -5 -4 -4 ------- Run | Yrd Mat Mat Sto Mat Fac Low Low Dat Pro Fac Was Fac Fac Ext Cet Arc Fac Arm Traps Triggered 3 | . . . . . . . . . . 1 . . . 2 . . . . Indirectly . | . . . . . . . . . . . . . . . . . . . Trap Hack Attempts . | . . . . . . . . . . . . . . . . . . . Triggered . | . . . . . . . . . . . . . . . . . . . Disarmed . | . . . . . . . . . . . . . . . . . . . Reprogrammed 1 | . . . . 1 . . . . . . . . . . . . . . Reused . | . . . . . . . . . . . . . . . . . . . Traps Extracted . | . . . . . . . . . . . . . . . . . . . Installed . | . . . . . . . . . . . . . . . . . . . Triggered . | . . . . . . . . . . . . . . . . . . . Machines | -11 -10 -9 -9 -8 -7 -7 -7 -7 -6 -6 -6 -6 -5 -5 -5 -5 -4 -4 ---------- Run | Yrd Mat Mat Sto Mat Fac Low Low Dat Pro Fac Was Fac Fac Ext Cet Arc Fac Arm Machines Disabled 59 | . . . 3 3 5 . . . . . . 5 . 7 1 . 23 12 Max in Single Turn 6 | . . . 1 1 4 . . . . . . 1 . 2 1 . 6 3 Garrison Access 3 | . . . . . 1 . . . . . . 1 1 . . . . . Energy Cycler 1 | . . . . . . . . . . . . . . . . . . 1 Machines Repaired . | . . . . . . . . . . . . . . . . . . . Machines Dismantled 2 | . . . . . . . . . . . . . . 1 1 . . . Machines Sabotaged . | . . . . . . . . . . . . . . . . . . . Overloaded Fab Kills . | . . . . . . . . . . . . . . . . . . . Hacking | -11 -10 -9 -9 -8 -7 -7 -7 -7 -6 -6 -6 -6 -5 -5 -5 -5 -4 -4 --------- Run | Yrd Mat Mat Sto Mat Fac Low Low Dat Pro Fac Was Fac Fac Ext Cet Arc Fac Arm Machines Accessed 30 | . . . 2 3 8 1 . 4 . . . . 4 3 1 . . 4 Terminals 16 | . . . 2 3 4 . . . . . . . 2 3 1 . . 1 Fabricators 6 | . . . . . 2 . . . . . . . 1 . . . . 3 Repair Stations 1 | . . . . . 1 . . . . . . . . . . . . . Recycling Units . | . . . . . . . . . . . . . . . . . . . Scanalyzers . | . . . . . . . . . . . . . . . . . . . Garrison Access 2 | . . . . . 1 . . . . . . . 1 . . . . . Total Hacks 87 | . . . 5 7 14 1 . 32 . . . . 11 8 3 . . 6 Successful 53 | . . . 3 6 5 1 . 32 . . . . 4 1 . . . 1 Failed 34 | . . . 2 1 9 . . . . . . . 7 7 3 . . 5 Catastrophic 12 | . . . 1 1 4 . . . . . . . . 2 1 . . 3 Database Lockouts . | . . . . . . . . . . . . . . . . . . . Manual 22 | . . . 3 4 10 . . . . . . . 3 1 1 . . . Terminals 38 | . . . 5 7 7 . . . . . . . 7 8 3 . . 1 Fabricators 11 | . . . . . 3 . . . . . . . 3 . . . . 5 Repair Stations 2 | . . . . . 2 . . . . . . . . . . . . . Recycling Units . | . . . . . . . . . . . . . . . . . . . Scanalyzers . | . . . . . . . . . . . . . . . . . . . Garrison Access 3 | . . . . . 2 . . . . . . . 1 . . . . . Terminal Hacks 40 | . . . 2 3 . 1 . 32 . . . . 1 1 . . . . Record 11 | . . . . . . . . 11 . . . . . . . . . . Part Schematic 11 | . . . . . . . . 11 . . . . . . . . . . Robot Schematic 7 | . . . . . . . . 7 . . . . . . . . . . Prototype ID Bank 3 | . . . . . . . . 3 . . . . . . . . . . Open Door 2 | . . . . . . 1 . . . . . . 1 . . . . . Emergency Access Points 1 | . . . . 1 . . . . . . . . . . . . . . Alert Level 1 | . . . . . . . . . . . . . . 1 . . . . Unreport Threat 1 | . . . 1 . . . . . . . . . . . . . . . Locate Traps 2 | . . . 1 1 . . . . . . . . . . . . . . Reprogram Traps 1 | . . . . 1 . . . . . . . . . . . . . . Fabricator Hacks 1 | . . . . . . . . . . . . . . . . . . 1 Build 1 | . . . . . . . . . . . . . . . . . . 1 Repair Station Hacks 1 | . . . . . 1 . . . . . . . . . . . . . Scan Component 1 | . . . . . 1 . . . . . . . . . . . . . Recycling Unit Hacks . | . . . . . . . . . . . . . . . . . . . Scanalyzer . | . . . . . . . . . . . . . . . . . . . Garrison Access Hacks . | . . . . . . . . . . . . . . . . . . . Unauthorized Hacks 11 | . . . 1 3 4 . . . . . . . 3 . . . . . Terminals 5 | . . . 1 3 1 . . . . . . . . . . . . . Track 1 | . . . . 1 . . . . . . . . . . . . . . Botnet 3 | . . . 1 1 1 . . . . . . . . . . . . . Disrupt 1 | . . . . 1 . . . . . . . . . . . . . . Fabricators 4 | . . . . . 2 . . . . . . . 2 . . . . . Liberate 3 | . . . . . 2 . . . . . . . 1 . . . . . Fabnet 1 | . . . . . . . . . . . . . 1 . . . . . Repair Stations . | . . . . . . . . . . . . . . . . . . . Recycling Units . | . . . . . . . . . . . . . . . . . . . Scanalyzers . | . . . . . . . . . . . . . . . . . . . Garrison Access 2 | . . . . . 1 . . . . . . . 1 . . . . . Jam 2 | . . . . . 1 . . . . . . . 1 . . . . . Data Cores Recovered 2 | . . . . . 1 . . . . . . . . . . . 1 . Used . | . . . . . . . . . . . . . . . . . . . Hacking Detections 22 | . . . 2 2 8 . . . . . . . 2 3 1 . . 4 Full Trace Events 3 | . . . . . . . . . . . . . 1 1 . . . 1 Feedback Events 1 | . . . . . . . . . . . . . . . . . . 1 Corruption 1 | . . . . . . . . . . . . . . . . . . 1 Feedback Blocked . | . . . . . . . . . . . . . . . . . . . Robot Schematics Acquired 7 | . . . . . . . . 7 . . . . . . . . . . Robots Built . | . . . . . . . . . . . . . . . . . . . Authchips . | . . . . . . . . . . . . . . . . . . . Time . | . . . . . . . . . . . . . . . . . . . Total Robot Build Rating . | . . . . . . . . . . . . . . . . . . . Part Schematics Acquired 11 | . . . . . . . . 11 . . . . . . . . . . Parts Built 1 | . . . . . . . . . . . . . . . . . . 1 Authchips . | . . . . . . . . . . . . . . . . . . . Time 139 | . . . . . . . . . . . . . . . . . . 139 Total Part Build Rating 9 | . . . . . . . . . . . . . . . . . . 9 Parts Repaired . | . . . . . . . . . . . . . . . . . . . Time . | . . . . . . . . . . . . . . . . . . . Parts Recycled . | . . . . . . . . . . . . . . . . . . . Recycled Matter . | . . . . . . . . . . . . . . . . . . . Retrieved Matter . | . . . . . . . . . . . . . . . . . . . Retrieved Components . | . . . . . . . . . . . . . . . . . . . Parts Scanalyzed . | . . . . . . . . . . . . . . . . . . . Part Schematics Acquired . | . . . . . . . . . . . . . . . . . . . Parts Damaged . | . . . . . . . . . . . . . . . . . . . Bothacking | -11 -10 -9 -9 -8 -7 -7 -7 -7 -6 -6 -6 -6 -5 -5 -5 -5 -4 -4 ------------ Run | Yrd Mat Mat Sto Mat Fac Low Low Dat Pro Fac Was Fac Fac Ext Cet Arc Fac Arm Used RIF Installer . | . . . . . . . . . . . . . . . . . . . Robots Hacked 1 | . . . . . . . . . . . . . . . . . . 1 Non-combat . | . . . . . . . . . . . . . . . . . . . Combat 1 | . . . . . . . . . . . . . . . . . . 1 Robot Hacks Applied . | . . . . . . . . . . . . . . . . . . . Relay Couplers Released 2 | . . . . . . . . . . . . 2 . . . . . . Machine Destruction 2 | . . . . . . . . . . . . 2 . . . . . . Fabnet Peak Effective % 3 | . . . . . . . . . . . . . . . . . 3 3 Autooverrided 1 | . . . . . . . . . . . . . . . . . . 1 Robots Rewired 10 | . . . . . . . . . . . . . . 6 . . . 4 Allies Hacked . | . . . . . . . . . . . . . . . . . . . Hacks Repelled . | . . . . . . . . . . . . . . . . . . . Allies | -11 -10 -9 -9 -8 -7 -7 -7 -7 -6 -6 -6 -6 -5 -5 -5 -5 -4 -4 -------- Run | Yrd Mat Mat Sto Mat Fac Low Low Dat Pro Fac Was Fac Fac Ext Cet Arc Fac Arm Total Allies 38 | . . . 2 . . . . . . . 19 . . 7 5 . . 5 Largest Group 19 | . . . 2 . . . . . . . 19 19 12 14 6 5 4 4 Highest-Rated Group 702 | . . . 62 . . . . . . . 702 702 514 548 639 538 379 120 Highest-Rated Ally 159 | . . . 31 . . . . . . . 50 50 50 159 159 159 96 49 Total Orders 7 | . . . . 4 . 3 . . . . . . . . . . . . ROAM 1 | . . . . 1 . . . . . . . . . . . . . . EXPLORE 4 | . . . . 2 . 2 . . . . . . . . . . . . RETURN 2 | . . . . 1 . 1 . . . . . . . . . . . . Ally Attacks 389 | . . . 10 . . . . . . . . 84 28 162 15 15 60 15 Total Damage 15028 | . . . 105 . . . . . . . . 2729 1256 7193 725 626 1951 443 Kills 98 | . . . . . . . . . . . . 20 12 48 4 3 9 2 Allies Corrupted 1 | . . . . . . . . . . . . . . . . . . 1 Allies Melted . | . . . . . . . . . . . . . . . . . . . Intel | -11 -10 -9 -9 -8 -7 -7 -7 -7 -6 -6 -6 -6 -5 -5 -5 -5 -4 -4 ------- Run | Yrd Mat Mat Sto Mat Fac Low Low Dat Pro Fac Was Fac Fac Ext Cet Arc Fac Arm Active Infowar (turns) 1685 | . . . . . . . . . . . . . . . . . 156 1529 Terrain 1491 | . . . . . . . . . . . . . . . . . . 1491 Jamming 354 | . . . . . . . . . . . . . . . . . 156 198 Robot Analysis Total 151 | . . . . . . . . 151 . . . . . . . . . . Derelict Logs Recovered 2 | . . . . . . . 1 . 1 . . . . . . . . . Drone Launches 16 | . . . . 9 . 3 . . . . . . . . . . . 4 Drone Recoveries 6 | . . . . 5 . 1 . . . . . . . . . . . . Exploration | -11 -10 -9 -9 -8 -7 -7 -7 -7 -6 -6 -6 -6 -5 -5 -5 -5 -4 -4 ------------- Run | Yrd Mat Mat Sto Mat Fac Low Low Dat Pro Fac Was Fac Fac Ext Cet Arc Fac Arm Turns Passed 13349 | 20 25 149 1279 1250 2179 663 634 236 848 79 1086 306 368 1003 382 200 703 1939 Spaces Moved 7617 | 33 50 177 584 660 1309 426 440 120 640 39 652 149 184 621 188 123 379 843 Core 430 | 33 50 177 54 . . . . . 87 . . . . . . . . 29 Treads 1844 | . . . 68 389 623 . . . . . 190 45 . . . . . 529 Legs . | . . . . . . . . . . . . . . . . . . . Wheels 5343 | . . . 462 271 686 426 440 120 553 39 462 104 184 621 188 123 379 285 Hover . | . . . . . . . . . . . . . . . . . . . Flight . | . . . . . . . . . . . . . . . . . . . Fastest Speed 50 | 50 50 50 50 110 125 125 125 130 50 140 110 130 115 115 115 115 129 50 Average Speed 130 | 50 50 50 132 142 146 125 128 130 114 141 135 152 115 115 115 132 130 141 Slowest Speed 400 | 50 50 50 160 240 243 125 130 130 145 145 400 170 145 115 115 145 145 237 Overloaded Moves . | . . . . . . . . . . . . . . . . . . . Propulsion Burnouts . | . . . . . . . . . . . . . . . . . . . Robots Hopped . | . . . . . . . . . . . . . . . . . . . Potential Cave-ins . | . . . . . . . . . . . . . . . . . . . Cave-ins Triggered 1 | . . . 1 . . . . . . . . . . . . . . . Exploration Rate (%) 41 | 4 18 15 49 53 29 58 63 79 51 1 96 7 6 73 67 73 12 35 Regions Visited 18 Branch Regions 9 Pre-discovered Areas 30 | . . . 1 . . . . 29 . . . . . . . . . . Known Exits Taken 2 | . . . . . 1 . . . . . . 1 . . . . . . Unknown Exits Taken 14 | 1 1 1 1 1 . 1 1 1 1 . . . 1 1 1 1 1 . Scrap Searched 10 | . . . . . . 3 4 . 3 . . . . . . . . . Spaces Dug 72 | . . . 17 . . . . . . . 10 . 6 . . . 9 30 Terrain Destroyed 773 | . . 50 49 5 44 . 4 8 . 3 198 6 8 115 . . 76 207 Melee . | . . . . . . . . . . . . . . . . . . . Projectile 58 | . . . . . 2 . . . . 3 3 6 8 7 . . 17 12 AOE 707 | . . 50 49 5 42 . 4 8 . . 195 . . 108 . . 59 187 Terrain Rammed . | . . . . . . . . . . . . . . . . . . . Walls Destroyed . | . . . . . . . . . . . . . . . . . . . Machines Disabled . | . . . . . . . . . . . . . . . . . . . Actions | -11 -10 -9 -9 -8 -7 -7 -7 -7 -6 -6 -6 -6 -5 -5 -5 -5 -4 -4 --------- Run | Yrd Mat Mat Sto Mat Fac Low Low Dat Pro Fac Was Fac Fac Ext Cet Arc Fac Arm Total 9973 | 34 49 220 883 890 1495 548 485 181 747 55 810 195 313 802 327 153 497 1289 Wait 820 | . . 14 98 55 20 102 15 23 13 1 85 13 108 10 88 18 11 146 Move 7600 | 32 49 176 583 659 1308 425 439 119 639 39 651 148 183 620 187 122 378 843 Hop . | . . . . . . . . . . . . . . . . . . . Pick Up 215 | . . 4 29 28 20 3 1 5 29 4 18 6 4 8 11 3 20 22 Fast Attach 92 | 2 . 6 5 13 7 . 3 . 15 . 5 1 . 1 1 2 3 28 Attach 71 | . . 2 11 4 6 2 . 6 4 4 2 . 2 . 1 . 7 20 Detach 21 | . . 3 4 . 3 . . 2 2 . 4 . 1 . . . 1 1 Swap 144 | . . . 13 16 16 5 2 5 5 1 5 2 . 15 10 . 14 35 Drop 245 | . . . 22 46 24 3 5 1 27 2 19 9 2 12 11 4 21 37 Fire 639 | . . 15 118 66 91 7 20 20 12 4 21 16 13 43 10 4 42 137 Melee . | . . . . . . . . . . . . . . . . . . . Ram 1 | . . . . . . . . . . . . . . . . . . 1 Kick . | . . . . . . . . . . . . . . . . . . . Crush 1 | . . . . 1 . . . . . . . . . . . . . . Escape Stasis 16 | . . . . . . . . . . . . . . 16 . . . . Rewire 88 | . . . . . . 1 . . . . . . . 69 . . . 18 Trap . | . . . . . . . . . . . . . . . . . . . Miscellaneous 20 | . . . . 2 . . . . 1 . . . . 8 8 . . 1 Route ------- -11/Scrapyard -10/Materials -9/Materials (discovered 2 exits: *Sto x2) -9/Storage -8/Materials -7/Factory -7/Lower Caves -7/Lower Caves -7/Data Miner -6/Proximity Caves -6/Factory (discovered 2 exits: Fac / Low) -6/Waste -6/Factory -5/Factory (discovered 2 exits: [*Fac] / *Ext) -5/Extension (discovered 2 exits: [*Fac] / *Cet) -5/Cetus (discovered 2 exits: [*Fac] / *Arc) -5/Archives (discovered 3 exits: [*Fac] / [*Hub x2]) -4/Factory -4/Armory (discovered 1 exit: [*Res]) History --------- Turn | Location | Event 3 | -11/Scrapyard | Discovered new exit (range 15) 21 | -11/Scrapyard | Entered Materials 43 | -10/Materials | Discovered new exit (range 8) 46 | -10/Materials | Entered another Materials area 46 | -9/Materials | Evolved 2 slots: Utility x1, Weapon x1 131 | -9/Materials | Discovered new exit (range 13) 188 | -9/Materials | Discovered new exit (range 11) 195 | -9/Materials | Entered Storage 228 | -9/Storage | Learned location of Armory (-4) 309 | -9/Storage | Build established: Mutant 390 | -9/Storage | Met a pair of Derelict thieves 1010 | -9/Storage | Crushed by falling debris 1093 | -9/Storage | Build established: Tank 1204 | -9/Storage | Discovered new exit (range 9) 1474 | -9/Storage | Entered Materials 1474 | -8/Materials | Evolved 2 slots: Propulsion x1, Weapon x1 2499 | -8/Materials | Discovered new exit (range 16) 2724 | -8/Materials | Entered Factory 2724 | -7/Factory | Evolved 2 slots: Utility x2 3013 | -7/Factory | Build established: Gunner 3729 | -7/Factory | Build established: Tank 3924 | -7/Factory | First assault squad dispatched 4079 | -7/Factory | Build established: Gunner 4389 | -7/Factory | Discovered new exit (range 10) 4715 | -7/Factory | Build established: Scavenger-Gunner 4878 | -7/Factory | Identified exit to Lower Caves 4903 | -7/Factory | Entered Lower Caves 5390 | -7/Lower Caves | Encountered a Warlord checkpoint 5470 | -7/Lower Caves | Discovered new exit (range 14) 5516 | -7/Lower Caves | Found DRS Beacon 5566 | -7/Lower Caves | Entered another Lower Caves area 5589 | -7/Lower Caves | Attracted the attention of an 0b10 checkpoint 5654 | -7/Lower Caves | Learned 8 Factory zone layouts 6103 | -7/Lower Caves | Discovered new exit (range 3) 6122 | -7/Lower Caves | Build established: Gunner 6200 | -7/Lower Caves | Entered Data Miner 6200 | -7/Data Miner | Discovered new exit (range 6) 6225 | -7/Data Miner | Met Data Miner 6263 | -7/Data Miner | Learned location of Section 7 (-2) 6263 | -7/Data Miner | Acquired the access code to Warlord's prototype stash 6278 | -7/Data Miner | Received God Mode back door access code from Data Miner 6300 | -7/Data Miner | Interfaced with the Data Conduit 6376 | -7/Data Miner | Lost 5 parts (1p1n1u2w) 6436 | -7/Data Miner | Entered Proximity Caves 6437 | -6/Proximity Caves | Unaware initiated a cargo recovery operation 6592 | -6/Proximity Caves | Activated DRS Beacon 6626 | -6/Proximity Caves | Lost 3 parts (1n2w) 6705 | -6/Proximity Caves | Learned Factory interactive machine intel 6858 | -6/Proximity Caves | Found Exp. Target Analyzer 6860 | -6/Proximity Caves | Found Exp. Target Analyzer 6863 | -6/Proximity Caves | Found Spectral Analyzer 7273 | -6/Proximity Caves | Discovered new exit (range 7) 7284 | -6/Proximity Caves | Entered Factory 7284 | -6/Factory | Evolved 2 slots: Utility x2 7285 | -6/Factory | Identified exit to Factory 7285 | -6/Factory | Identified exit to Lower Caves 7286 | -6/Factory | Loaded intel: 284 machine locations 7287 | -6/Factory | Loaded intel: 53 interactive machine locations 7363 | -6/Factory | Sucked down chute 7363 | -6/Factory | Entered Waste 7443 | -6/Waste | Spotted C-40 Crusher 7453 | -6/Waste | Destroyed C-40 Crusher 7483 | -6/Waste | Spotted C-40 Crusher 7498 | -6/Waste | Destroyed C-40 Crusher 7501 | -6/Waste | Spotted C-40 Crusher 7504 | -6/Waste | Spotted C-40 Crusher 7510 | -6/Waste | Destroyed C-40 Crusher 7517 | -6/Waste | Spotted C-40 Crusher 7614 | -6/Waste | Destroyed C-40 Crusher 7630 | -6/Waste | Destroyed C-40 Crusher 7631 | -6/Waste | Spotted C-40 Crusher 7658 | -6/Waste | Destroyed C-40 Crusher 7775 | -6/Waste | Discovered new exit (range 12) 7842 | -6/Waste | Warlord forces began an assault 8163 | -6/Waste | Found Broken Heavy Servo Lattice 8449 | -6/Waste | Entered Factory 8449 | -6/Factory | Accompanied by 19 allies 8450 | -6/Factory | Loaded intel: 254 machine locations 8560 | -6/Factory | Garrison activated, responded to threat 8560 | -6/Factory | P-60 Hacker assimilated allied G5-Z4O(s) 8618 | -6/Factory | Lost 3 allies 8653 | -6/Factory | Lost 3 allies 8675 | -6/Factory | Discovered exit to Factory (range 11) 8755 | -6/Factory | Entered another Factory area 8755 | -5/Factory | Accompanied by 12 allies 8755 | -5/Factory | Evolved 2 slots: Propulsion x1, Utility x1 8756 | -5/Factory | Loaded intel: 278 machine locations 8902 | -5/Factory | Discovered new exit (range 11) 9024 | -5/Factory | Discovered new exit (range 5) 9123 | -5/Factory | Entered Extension 9123 | -5/Extension | Accompanied by 10 allies 9124 | -5/Extension | Loaded intel: 21 machine locations 9423 | -5/Extension | First assault squad dispatched 9771 | -5/Extension | Spotted B-75 Beast 9779 | -5/Extension | Destroyed B-75 Beast 9793 | -5/Extension | Spotted B-75 Beast 9798 | -5/Extension | Disrupted transfer network 9800 | -5/Extension | Destroyed B-75 Beast 9811 | -5/Extension | High security lockdown imminent 9846 | -5/Extension | Destroyed 11 combat bots 9891 | -5/Extension | High security lockdown engaged 9908 | -5/Extension | Rescued A7 10074 | -5/Extension | Destroyed 14 combat bots 10096 | -5/Extension | Discovered new exit (range 16) 10096 | -5/Extension | Discovered new exit (range 16) 10126 | -5/Extension | Entered Cetus 10126 | -5/Cetus | Accompanied by 2 allies (A7) 10127 | -5/Cetus | Loaded intel: 24 machine locations 10131 | -5/Cetus | Acquired a Cetus Manufacturing Module code from A7 10148 | -5/Cetus | Spotted Cetus Guard 10148 | -5/Cetus | Spotted Cetus Guard 10151 | -5/Cetus | Spotted Cetus Guard 10152 | -5/Cetus | Spotted Cetus Guard 10156 | -5/Cetus | Destroyed Cetus Guard 10159 | -5/Cetus | Destroyed Cetus Guard 10167 | -5/Cetus | Allies destroyed Cetus Guard 10172 | -5/Cetus | Allies destroyed Cetus Guard 10220 | -5/Cetus | Started Cetus Manufacturing Module 10245 | -5/Cetus | Manufactured an Enhanced Grunt 10248 | -5/Cetus | Escorted A7 to Cetus Mainframe 10270 | -5/Cetus | Manufactured an Enhanced Grunt 10274 | -5/Cetus | Discovered new exit (range 15) 10295 | -5/Cetus | Manufactured an Enhanced Grunt 10320 | -5/Cetus | Manufactured an Enhanced Grunt 10345 | -5/Cetus | Manufactured an Enhanced Grunt 10371 | -5/Cetus | Spotted Cetus Guard 10371 | -5/Cetus | Spotted Cetus Guard 10375 | -5/Cetus | Spotted Cetus Guard 10375 | -5/Cetus | Spotted Cetus Guard 10380 | -5/Cetus | Destroyed Cetus Guard 10380 | -5/Cetus | Destroyed Cetus Guard 10383 | -5/Cetus | Allies destroyed Cetus Guard 10383 | -5/Cetus | Destroyed Cetus Guard 10418 | -5/Cetus | Discovered new exit (range 15) 10423 | -5/Cetus | Met Revision 17 10508 | -5/Cetus | Entered Archives 10508 | -5/Archives | Accompanied by 5 allies (A7) 10509 | -5/Archives | Loaded intel: 8 machine locations 10513 | -5/Archives | Received a hacking code to weaken MAIN.C 10599 | -5/Archives | Discovered new exit (range 16) 10615 | -5/Archives | Unable to access archive contents 10640 | -5/Archives | Discovered new exit (range 15) 10653 | -5/Archives | Discovered new exit (range 14) 10708 | -5/Archives | Entered Factory 10708 | -4/Factory | Accompanied by 4 allies 10708 | -4/Factory | Evolved 2 slots: Utility x2 10709 | -4/Factory | Loaded intel: 336 machine locations 10867 | -4/Factory | Build established: Scavenger-Gunner 10958 | -4/Factory | First assault squad dispatched 11180 | -4/Factory | Found Exp. Thermal Shield 11234 | -4/Factory | Discovered new exit (range 11) 11294 | -4/Factory | Destroyed 8 combat bots 11411 | -4/Factory | Entered Armory 11412 | -4/Armory | Loaded intel: 87 machine locations 11661 | -4/Armory | First assault squad dispatched 11828 | -4/Armory | Energy Cycler disabled 11898 | -4/Armory | Lost 4 allies 11901 | -4/Armory | Lost 3 parts (1n2u) 12212 | -4/Armory | Fabricated Adv. Heavy Siege Treads? 12233 | -4/Armory | Destroyed 7 combat bots 12502 | -4/Armory | Build established: Scavenger-Tank 12502 | -4/Armory | System corruption reached 10% 12965 | -4/Armory | Lost 4 allies 12975 | -4/Armory | Destroyed 7 combat bots 13032 | -4/Armory | Discovered new exit (range 5) 13141 | -4/Armory | Spotted B-86 Titan 13231 | -4/Armory | Core integrity fell below 50% 13268 | -4/Armory | Lost 17 parts (3p3n5u6w) 13272 | -4/Armory | Intercept squad dispatched 13288 | -4/Armory | Spotted Tracker 13289 | -4/Armory | Spotted Tracker 13295 | -4/Armory | Destroyed B-86 Titan 13310 | -4/Armory | Destroyed Tracker 13322 | -4/Armory | Core integrity fell below 20% 13330 | -4/Armory | Spotted Combat Programmer 13332 | -4/Armory | Spotted Combat Programmer 13350 | -4/Armory | Lost 12 parts (1p1n4u6w) 13350 | -4/Armory | Destroyed by Tracker with Linked Autogun Last Messages --------------- 13331_ C-30 ARC bursts open, deploying its payload. 13331_ G-73 Enforcer unfolds itself. 13331_ G-67 Veteran unfolds itself. 13331_ B-60 Warrior unfolds itself. 13331_ M-36 Artificer unfolds itself. 13332_ >6:7HGF3 ,AWKQ/ZJWGW44V 13334_ Dropped Hcp. Storage Unit. 13334_ Dropped Matter Compressor. 13335_ Penetrated by EMDS Slug. 13335_ Dropped Quantum Rifle. 13336_ Acquired 81 matter. 13337_ EMDS Slug penetrates Wall. 13337_ Acquired 40 matter. 13338_ Acquired 80 matter. 13341_ EMDS Slug penetrates Wall. 13343_ Penetrated by EMDS Slug. 13343_ EMDS Slug penetrates Wall. 13346_ EMDS Slug penetrates Door. 13347_ QQACD,PL/&S>U0RIFU9AM Map ----- +----------------------------------------------------+ | ! # !# !#######!#### !*[%= #???????????? | | " "%!!%!!![[=! ## !=#??????????????? | | %"%" " * !!!= ! ##= !!!! =#?##???????????? | | # # # ########!*#"!!!! ! #?+##?#???????????? | | # !< #####?????# [##/*!=/! #?? #????????????? | | ###########* ##%/ * # ? ?#???????????? | | # ##### ###*[[%= %=[ # ?? ##???????????? | | ## #[=! =*!= +?? ??#?#?????????? | | ## """ "*%###""T""###?????#???????????? | | ## ""R" # !###"""""#?# ? #?#??????????? | | ?# "" " + #?######### ??????#?????????? | | ## # #?#########? ???????????????? | | #??""" # ##?#### ### #?#??????????? | | ?#?""" # #######"#######???#?????????? | | ?# """ # ## #??##?#???????? | | ?? ? # ## """" """" #?#?#?????????? | | ???######## # ##### p## """" """" ##?###?#??????? | | ##?#????#######?### ## """" """" ####?#????????? | | ??????### ##### # """" """" #####?????????? | | ??? # ###?#?#??#????? | | ??? ; """" """" ####??#???????? | | ??????### ##### # """" """" #?####?##?#???? | | ???????###??#######;### """" """"[##?#####?#????? | | ?????????#?## ! # """ !"""!!#####??####?#?? | | ?????????#??# ! s =!![*!=##?####??#?#??? | | ?????????##?# * # @ ===[!%=######?##?????? | | ??????????#?# ###########!#####??###?###?? | | ????????????+ """"" " ###########|##########??##?? | | ????????????# """"""" ###?#######[####?##?#######? | | ????????#???# """"""" ####?###?##=######?#?#####?? | | ???????????## #?#########*###?#######?##?? | | ????????????#?#########?#########*###?#####?#?###? | | ??????????????????? ?? ? ##[##?###########?? | | ????????????????#??"""""? ?#*#?####?##?###### | | ????????????????#? """"" ? ## ################ | | ?????????????????# """"" ##+!!############## | | ??"""??????????????? ?? ? # ![!=! # | | ???Y"??????????????""""" ? # !=[* # """" | | ??"""?????????""???"""""?? #"" !!! # "[ ] | | ??????????????T"???"""""???? #"F ! ! # " "" | | ""????????????""????? ? ? ? ? ?#""" !! # "["" | | ""???????????????????? ? ? #""" # """" | | ?"???????????????????? ? # # | | F"?????????????????????#??##?#######+####"## # # # | | ""????????????????????? ? ^ ! | | ??????????????????????????? [ ! | | ?????????????????????????? =| | | ??????????????????????????? | | ????????????????????????????############### # # | | ????????????????????????????##?????????? | +----------------------------------------------------+ Best States ------------- Heat Dissipation 119 Energy Generation 31 Energy Capacity 850 Matter Stores 300 Matter Capacity 300 Sight Range 16 Terrain Scan Range 14 Terrain Scan Density 85 Jamming Range 14 Power Amplification 30 Base Temperature (-) 200 Armor Coverage 1350 Resistance: KI 20 Resistance: TH 30 Resistance: EM 25 Propulsion Shielding 33 Evasion (%) 50 Targeting Accuracy 8 Launcher Accuracy 20 Target Analysis 15 Core Analysis 9 Recoil Reduction 4 Particle Charging 25 Salvage Targeting 3 Item Schematics ----------------- Combat Drone Bay | -7/Data Miner | Free Lgt. Regenerative Plating | -7/Data Miner | Free Biomechanical Wings | -7/Data Miner | Free Thermal Defense Suite | -7/Data Miner | Free Com. Ion Cannon | -7/Data Miner | Free Antigrav System | -7/Data Miner | Free Lance | -7/Data Miner | Free Imp. Kinecellerator | -7/Data Miner | Free Flexi-carbon Leg | -7/Data Miner | Free Graphene Brace | -7/Data Miner | Free Thunder Leg | -7/Data Miner | Free Robot Schematics ------------------ M-14 Sweeper | -7/Data Miner | Free G-47 Trooper | -7/Data Miner | Free E-15 Imp | -7/Data Miner | Free B-48 Gladiator | -7/Data Miner | Free L-41 Fighter | -7/Data Miner | Free S-27 Virus | -7/Data Miner | Free P-70 Sage | -7/Data Miner | Free Fabricated ------------ Adv. Heavy Siege Treads | x1 | -4/Armory | Preloaded Repaired ---------- Nothing Alien Tech Used ----------------- None Achievements -------------- None Challenges ------------ None Game ------ Seed BackupSiegeChainsaw Manual? 0 Play Time 02:20:13 Cumulative 312.6 hours Start 2025.06.28 @ 11:43:52 End 2025.06.28 @ 14:06:01 Sessions 1 Manual Loads 0 Difficulty Rogue Special Mode None Game No. 275 Rogue 275 Adventurer 0 Explorer 0 Win Type - Total 2 Types 1/1/0/0/0/0/0/0/0/0 Lore% 77 Gallery% 80 Achievement% 72 Wizard Run 0 Options --------- Layout 1 ASCII 0 Keyboard 0 Movement Numpad Keybinds 0 Fullscreen 1 Font 24/Smallcaps Map View 50x35 Zoom Use 0% Tactical HUD 1 Map Filters NONE Filters NONE Steam 1 RUN: ed10f964-6084-4982-b348-cbacf14f0163